bitfinex/quotes_ETHUSD_20251124
["timestamp","ask_amount","ask_price","bid_price","bid_amount"]
[1763952411632,29.71008572,2845.4,2843.2,0.1]
[1763952411633,0.90699264,2844.7,2843.2,0.1]
[1763952411926,0.90699264,2844.5,2843.0,0.1]
[1763952412105,0.3294486,2844.4,2843.0,0.1]
[1763952412279,0.90699264,2844.1,2842.9,0.1193]
[1763952412485,0.5544486,2844.0,2842.9,0.1193]
[1763952412684,1.0256486,2844.0,2842.9,0.1193]
[1763952412906,0.72231272,2843.9,2842.7,0.2386]
[1763952413109,1.19351272,2843.9,2842.7,0.3386]
[1763952413285,0.8006486,2843.8,2842.7,0.3386]
[1763952413478,0.4712,2843.8,2842.8,0.1193]
[1763952413680,0.4712,2843.8,2843.0,0.1]
[1763952414415,0.225,2843.7,2842.8,0.1193]
[1763952414920,0.6962,2843.7,2842.8,0.1193]
[1763952415107,0.6962,2843.7,2842.7,0.2193]
[1763952415316,0.4712,2843.6,2842.7,0.2193]
[1763952415484,0.225,2843.5,2842.8,0.1193]
[1763952415688,0.225,2843.5,2843.0,0.1]
[1763952415996,0.225,2843.4,2843.0,0.1]
[1763952416180,0.1996,2843.9,2842.7,0.2193]
[1763952416181,0.226,2843.5,2842.7,0.2193]
[1763952416812,0.1996,2844.1,2843.4,0.1193]
[1763952417006,0.226,2844.0,2843.4,0.1193]
[1763952417437,0.6972,2844.0,2843.4,0.1193]
[1763952418019,0.6972,2844.0,2842.9,0.1193]
[1763952418020,0.4712,2843.9,2842.9,0.1193]
[1763952418426,0.226,2844.0,2842.9,0.1193]
[1763952418640,0.226,2844.0,2843.1,0.1]
[1763952418917,0.6972,2844.0,2843.1,0.1]
[1763952419327,0.226,2843.9,2843.2,0.1]
[1763952419625,0.74115372,2843.9,2842.9,0.1]
[1763952419842,0.226,2843.8,2842.8,0.1]
[1763952420046,0.6972,2843.8,2842.8,0.1]
[1763952420241,0.4712,2843.8,2843.1,0.1]
[1763952420442,0.226,2843.7,2842.9,0.1193]
[1763952420647,0.4712,2844.3,2843.3,0.1]
[1763952420856,0.226,2844.2,2843.6,0.1193]
[1763952421342,6.32,2844.5,2843.6,0.2386]
[1763952421591,0.226,2844.4,2843.6,0.2386]
[1763952421872,0.226,2844.4,2843.6,0.3386]
[1763952422071,0.226,2844.4,2843.6,0.1193]
[1763952422252,0.226,2844.4,2843.8,0.1]
[1763952422453,6.9908,2844.6,2844.3,0.1193]
[1763952422454,6.32,2844.6,2844.3,0.1193]
[1763952422746,6.32,2844.6,2842.8,0.226]
[1763952422747,0.4795,2844.4,2843.5,0.1193]
[1763952422952,0.04394754,2844.3,2843.6,0.1]
[1763952423148,0.04394754,2844.3,2843.3,0.1]
[1763952423149,0.51514754,2844.3,2843.3,0.1]
[1763952423361,0.4712,2844.3,2843.3,0.1]
[1763952423566,0.4712,2844.3,2843.5,0.001]
[1763952423771,1.37819264,2844.3,2843.5,0.001]
[1763952424100,0.6791,2843.6,2843.5,0.001]
[1763952424583,1.1503,2843.6,2843.5,0.001]
[1763952424779,1.19425836,2843.6,2843.5,0.001]
[1763952425290,0.226,2843.7,2843.5,0.001]
[1763952425456,0.52345836,2843.6,2843.5,0.001]
[1763952425657,0.4795,2843.6,2843.5,0.001]
[1763952426359,0.99465836,2843.6,2843.5,0.001]
[1763952426779,0.9507,2843.6,2843.5,0.001]
[1763952427147,0.99465836,2843.6,2843.5,0.001]
[1763952427411,1.46837493,2843.6,2843.5,0.001]
[1763952427567,2.37536757,2843.6,2843.5,0.001]
[1763952427752,1.42441657,2843.6,2843.5,0.001]
[1763952427953,1.1767,2843.6,2843.5,0.001]
[1763952429994,0.9507,2843.6,2843.5,0.001]
[1763952430161,0.7055,2843.6,2843.5,0.001]
[1763952430361,1.189,2843.6,2843.5,0.001]
[1763952430656,0.74945836,2843.6,2843.5,0.001]
[1763952430968,0.7055,2843.6,2843.5,0.001]
[1763952431695,0.226,2843.6,2843.5,0.001]
[1763952432090,0.14099475,2844.5,2843.5,0.1203]
[1763952432269,0.75344599,2844.4,2843.5,0.001]
[1763952432766,0.4789,2843.6,2843.5,0.001]
[1763952433168,0.9624,2843.6,2843.5,0.001]
[1763952434096,0.4789,2843.6,2843.5,0.001]
[1763952434472,0.9624,2843.6,2843.5,0.001]
[1763952435075,1.00635836,2843.6,2843.5,0.001]
[1763952435391,1.22029346,2843.6,2843.5,0.001]
[1763952436177,1.54845964,2843.6,2843.5,0.001]
[1763952436562,1.50450128,2843.6,2843.5,0.001]
[1763952436759,2.41149392,2843.6,2843.5,0.001]
[1763952437401,1.50450128,2843.6,2843.5,0.001]
[1763952437901,1.54845964,2843.6,2843.5,0.001]
[1763952438195,8.77545228,2843.6,2843.5,0.001]
[1763952438397,8.73149392,2843.6,2843.5,0.001]
[1763952438973,8.95749392,2843.6,2843.5,0.001]
[1763952439972,5.666753,2843.3,2841.6,0.1203]
[1763952440215,5.666753,2843.3,2841.7,0.1]
[1763952440216,1.98710715,2843.2,2841.7,0.1]
[1763952440371,1.98710715,2843.2,2841.8,0.1203]
[1763952440372,0.55416618,2843.1,2841.8,0.1203]
[1763952440571,0.55416618,2843.1,2841.5,0.1203]
[1763952440572,0.32816618,2843.0,2841.6,0.1]
[1763952440786,0.32816618,2842.9,2842.0,0.1]
[1763952441082,0.32816618,2842.9,2841.2,0.1203]
[1763952441083,0.90699264,2842.4,2841.2,0.1203]
[1763952441284,3.305984,2842.7,2839.1,3.52214789]
[1763952441285,0.4789,2841.3,2840.4,0.1203]
[1763952441487,1.30300384,2841.2,2840.4,0.1203]
[1763952441784,1.30300384,2841.2,2839.1,7.04448592]
[1763952441785,0.32883806,2841.1,2840.2,0.1203]
[1763952441982,0.97418255,2841.0,2840.2,0.1203]
[1763952442182,0.97418255,2841.0,2838.7,3.74869715]
[1763952442183,1.17543461,2841.0,2839.6,0.1203]
[1763952442383,0.681,2840.9,2840.0,0.1203]
[1763952442576,1.86034185,2840.8,2840.0,0.1203]
[1763952442795,0.226,2840.7,2840.0,0.1203]
[1763952442999,0.226,2840.6,2840.0,0.1203]
[1763952443303,0.226,2840.7,2840.0,0.2406]
[1763952443718,0.226,2840.7,2840.0,0.1203]
[1763952443918,0.681,2840.9,2840.1,0.1203]
[1763952443919,0.1975,2840.9,2840.1,0.1203]
[1763952444231,0.1975,2840.9,2840.0,0.1203]
[1763952444232,0.226,2840.7,2840.0,0.1203]
[1763952444517,0.226,2840.7,2838.8,0.226]
[1763952444518,0.226,2840.7,2839.8,0.1203]
[1763952444688,0.74741021,2840.7,2839.8,0.1203]
[1763952444882,0.18519028,2840.7,2839.9,0.2203]
[1763952445109,0.226,2840.6,2839.9,0.1203]
[1763952445312,0.18519028,2840.7,2839.9,0.1]
[1763952445313,0.226,2840.5,2839.9,0.1]
[1763952445617,0.226,2840.5,2840.0,0.1203]
[1763952445821,5.93341393,2841.5,2840.4,0.1203]
[1763952446122,0.226,2841.2,2840.6,0.1203]
[1763952446817,0.226,2841.2,2840.1,0.1203]
[1763952447252,0.226,2841.2,2840.4,0.1]
[1763952447522,0.7095,2841.2,2840.1,0.2203]
[1763952447688,0.52141021,2841.1,2839.8,0.2406]
[1763952447882,1.00491021,2841.1,2839.8,0.2406]
[1763952448083,1.00491021,2841.1,2839.8,0.3406]
[1763952448331,0.4835,2841.0,2839.8,0.3406]
[1763952448558,0.4835,2841.0,2840.0,0.1]
[1763952448760,0.1975,2840.9,2840.0,0.1]
[1763952449622,0.681,2840.9,2840.0,0.1]
[1763952449816,0.681,2840.9,2839.8,0.2406]
[1763952450147,0.4835,2840.8,2839.8,0.1203]
[1763952450348,0.226,2840.7,2839.8,0.1203]
[1763952450514,0.226,2840.7,2839.8,0.2203]
[1763952450846,0.4835,2840.6,2839.8,0.1203]
[1763952451221,0.90699264,2840.4,2839.5,0.1203]
[1763952451447,0.68404066,2840.3,2839.5,0.1203]
[1763952451749,0.226,2840.2,2839.5,0.1203]
[1763952451937,0.7095,2840.2,2839.5,0.1203]
[1763952452344,0.226,2840.2,2839.5,0.1203]
[1763952452527,0.4835,2840.1,2839.1,0.1203]
[1763952452731,0.90699264,2839.9,2838.6,0.3406]
[1763952453035,0.68404066,2839.8,2838.6,0.1203]
[1763952453245,0.226,2839.7,2838.6,0.2203]
[1763952453444,1.23091021,2839.7,2838.6,0.2203]
[1763952453944,0.4835,2839.6,2838.6,0.2203]
[1763952454255,0.226,2839.7,2838.6,0.1203]
[1763952454442,0.4835,2839.6,2838.6,0.1203]
[1763952455333,0.226,2839.7,2838.6,0.1203]
[1763952455334,0.226,2839.5,2838.6,0.1203]
[1763952455567,1.23091021,2839.5,2838.6,0.1203]
[1763952455871,1.23091021,2839.5,2838.4,0.1203]
[1763952456164,0.4835,2839.4,2838.4,0.1203]
[1763952456370,0.52141021,2839.5,2838.4,0.2203]
[1763952456525,0.226,2839.4,2838.7,0.1]
[1763952457731,0.226,2839.4,2838.6,0.2203]
[1763952457959,0.226,2839.4,2838.6,0.1203]
[1763952458676,0.226,2839.4,2838.8,0.1]
[1763952459576,0.04402493,2839.3,2838.6,0.1203]
[1763952459759,0.04402493,2839.3,2838.4,0.1203]
[1763952460183,0.04402493,2839.3,2838.4,0.2203]
[1763952460386,0.04402493,2839.3,2838.4,0.3406]
[1763952460881,0.04402493,2839.3,2838.5,0.001]
[1763952461181,0.4565,2839.3,2838.5,0.001]
[1763952463252,0.04402648,2839.2,2838.5,0.001]
[1763952463470,0.4565,2839.3,2838.5,0.001]
[1763952464057,0.4565,2839.3,2838.5,0.101]
[1763952465576,0.4565,2839.3,2838.5,0.001]
[1763952465745,0.04402648,2839.2,2838.5,0.001]
[1763952465947,0.4651,2839.1,2838.5,0.001]
[1763952466147,0.226,2839.4,2838.5,0.001]
[1763952466343,0.4651,2839.3,2838.5,0.001]
[1763952467682,0.226,2839.4,2838.5,0.001]
[1763952467987,0.226,2839.4,2838.5,0.2213]
[1763952468375,0.4651,2839.3,2838.5,0.001]
[1763952468552,0.04402648,2839.2,2838.5,0.001]
[1763952469073,0.50912648,2839.2,2838.5,0.001]
[1763952470588,0.4651,2839.2,2838.5,0.001]
[1763952470785,0.32835822,2839.1,2838.5,0.001]
[1763952471161,0.4651,2839.0,2838.5,0.001]
[1763952471578,0.1808,2838.9,2838.5,0.001]
[1763952471886,0.459,2838.6,2838.5,0.001]
[1763952472387,0.226,2838.8,2838.5,0.001]
[1763952473606,0.459,2838.6,2838.5,0.001]
[1763952474110,0.9241,2838.6,2838.5,0.001]
[1763952475774,0.459,2838.6,2838.5,0.001]
[1763952476213,0.9241,2838.6,2838.5,0.001]
[1763952476417,1.25289072,2838.6,2838.5,0.001]
[1763952476889,0.32879072,2838.6,2838.5,0.001]
[1763952477073,0.32879072,2838.7,2838.5,0.001]
[1763952477389,0.78779072,2838.6,2838.5,0.001]
[1763952477590,1.02637906,2838.6,2838.5,0.001]
[1763952477791,1.49147906,2838.6,2838.5,0.001]
[1763952478021,0.56737906,2838.6,2838.5,0.001]
[1763952478222,0.32879072,2838.6,2838.5,0.001]
[1763952478707,1.25289072,2838.6,2838.5,0.001]
[1763952479116,0.78779072,2838.6,2838.5,0.001]
[1763952479325,0.32879072,2838.6,2838.5,0.001]
[1763952479478,0.78779072,2838.6,2838.5,0.001]
[1763952479879,1.25289072,2838.6,2838.5,0.001]
[1763952480886,0.32879072,2838.6,2838.5,0.001]
[1763952481100,0.32879072,2838.6,2838.5,0.2416]
[1763952481315,0.1808,2839.6,2838.5,0.001]
[1763952481316,0.4651,2838.9,2838.5,0.001]
[1763952481517,0.3728234,2838.8,2838.5,0.001]
[1763952481692,0.32879072,2838.7,2838.5,0.1213]
[1763952482011,0.226,2839.4,2838.5,0.1213]
[1763952482012,0.32879072,2839.2,2838.6,0.1]
[1763952482212,0.32879072,2839.2,2838.5,0.1213]
[1763952482213,0.37281875,2839.1,2838.5,0.001]
[1763952482380,0.32879072,2839.0,2838.5,0.001]
[1763952482581,0.32879072,2838.9,2838.5,0.1213]
[1763952482812,0.32879072,2839.2,2838.6,0.1]
[1763952483014,0.32879072,2839.1,2838.5,0.1213]
[1763952483237,0.32879072,2839.0,2838.5,0.1213]
[1763952483396,0.32879072,2839.0,2838.5,0.001]
[1763952483397,0.32879072,2838.9,2838.5,0.001]
[1763952483582,0.3728234,2838.8,2838.5,0.001]
[1763952483887,0.32879072,2838.7,2838.5,0.001]
[1763952484087,1.69842778,2839.3,2838.5,0.001]
[1763952484088,0.226,2839.3,2838.5,0.001]
[1763952484279,0.79484362,2839.2,2838.5,0.001]
[1763952484481,0.32974362,2839.1,2838.5,0.2213]
[1763952484710,0.32974362,2839.0,2838.5,0.2213]
[1763952484931,0.52141021,2839.7,2838.5,0.2213]
[1763952484932,0.52141021,2839.7,2838.6,0.1203]
[1763952485217,0.32969348,2839.6,2838.6,0.1203]
[1763952485384,1.05898736,2840.6,2840.1,0.1203]
[1763952485580,0.32969707,2840.5,2840.1,0.3406]
[1763952485783,0.32969707,2840.4,2840.1,0.3406]
[1763952486128,0.32969707,2840.3,2840.1,0.1203]
[1763952486282,0.32969707,2840.7,2840.1,0.1203]
[1763952486484,0.32969707,2840.6,2840.2,0.1203]
[1763952486809,0.32969707,2841.0,2840.2,0.1203]
[1763952487024,0.32969707,2840.9,2840.5,0.1203]
[1763952487192,0.32969707,2841.0,2840.5,0.1203]
[1763952487387,0.55569707,2841.1,2840.5,0.1203]
[1763952487718,0.55569707,2841.1,2840.5,0.2406]
[1763952488015,0.9041,2841.6,2840.6,0.1]
[1763952488189,0.9041,2841.6,2839.8,10.56409754]
[1763952488190,1.32937454,2841.5,2840.0,0.226]
[1763952488395,0.32880516,2841.4,2840.3,0.2203]
[1763952488591,0.32880516,2841.4,2840.5,0.1]
[1763952488819,0.32880516,2841.4,2840.5,0.2203]
[1763952489112,0.52459394,2841.3,2840.2,0.2203]
[1763952489516,1.00056938,2841.3,2840.2,0.1]
[1763952489718,1.00056938,2841.3,2840.3,0.1203]
[1763952490024,0.51996938,2841.2,2840.3,0.1203]
[1763952490204,1.27912077,2841.1,2839.8,0.1]
[1763952490401,1.27912077,2841.1,2839.8,0.2203]
[1763952490402,3.28300352,2841.0,2839.8,0.2203]
[1763952490603,2.04787979,2841.0,2840.1,0.1]
[1763952490802,0.99741173,2840.9,2839.7,0.1]
[1763952491122,0.51996938,2840.8,2839.7,0.1]
[1763952491282,1.00056938,2840.8,2839.7,0.2203]
[1763952492321,0.79496724,2840.8,2839.8,0.1203]
[1763952492559,1.00056938,2841.2,2839.8,0.1203]
[1763952492747,0.6781,2841.6,2841.1,0.1203]
[1763952492915,0.226,2841.4,2841.1,0.1203]
[1763952493813,0.51996938,2841.8,2841.1,0.1203]
[1763952493814,1.22656938,2841.8,2841.1,0.1203]
[1763952494019,0.4709,2841.2,2840.0,0.1203]
[1763952494218,0.4709,2841.2,2840.5,0.1203]
[1763952494453,1.00056938,2841.7,2840.5,0.1203]
[1763952494454,0.51996938,2841.7,2840.6,0.1]
[1763952494662,0.51996938,2841.7,2840.6,0.2203]
[1763952494822,0.0439893,2841.6,2840.6,0.2203]
[1763952495160,0.226,2841.8,2841.2,0.1]
[1763952496029,0.226,2841.8,2841.2,0.2203]
[1763952496230,0.226,2841.8,2840.8,0.1203]
[1763952496449,0.226,2841.8,2840.9,0.1]
[1763952497137,0.04398775,2841.7,2840.9,0.1]
[1763952497334,0.04398775,2841.7,2840.5,0.1203]
[1763952497534,1.00056938,2841.6,2840.5,0.2203]
[1763952497734,0.04399084,2841.5,2840.5,0.1203]
[1763952497956,0.71512467,2841.4,2840.5,0.1203]
[1763952498354,0.4806,2841.3,2840.5,0.1203]
[1763952498683,0.78996487,2841.2,2840.0,0.1203]
[1763952498845,0.74596938,2841.2,2840.3,0.1203]
[1763952499048,0.226,2841.2,2840.4,0.1203]
[1763952499377,0.4806,2841.1,2840.3,0.1203]
[1763952499666,6.8006,2841.1,2840.3,0.1203]
[1763952499884,1.60965264,2841.0,2840.3,0.1203]
[1763952500246,0.90699264,2841.0,2840.4,0.1]
[1763952500447,0.90699264,2841.0,2840.3,0.1203]
[1763952500448,0.4709,2840.4,2840.0,0.1203]
[1763952500856,0.9515,2840.4,2839.8,0.1203]
[1763952501586,0.6597,2839.9,2839.4,0.1203]
[1763952502059,0.4806,2839.8,2839.2,0.1203]
[1763952503343,0.4709,2839.3,2838.7,0.1203]
[1763952504966,0.9515,2839.3,2838.7,0.1203]
[1763952505292,0.9515,2839.3,2838.5,0.001]
[1763952506778,0.4709,2839.3,2838.5,0.001]
[1763952507090,0.4709,2839.3,2838.6,0.1]
[1763952507279,0.4709,2839.3,2838.5,0.001]
[1763952507493,0.4806,2839.7,2838.7,0.1]
[1763952507798,0.4806,2839.7,2838.5,0.001]
[1763952508602,4.52212647,2839.7,2838.5,0.001]
[1763952508766,1.44990455,2839.6,2838.5,0.001]
[1763952508966,1.93050455,2839.6,2838.5,0.001]
[1763952509159,0.4806,2839.5,2838.5,0.001]
[1763952509592,1.00056938,2839.5,2838.5,0.001]
[1763952509953,0.4806,2839.4,2838.5,0.001]
[1763952510301,0.226,2839.3,2838.5,0.001]
[1763952510770,0.4806,2839.2,2838.5,0.001]
[1763952511760,0.6597,2838.6,2838.5,0.001]
[1763952512289,1.1403,2838.6,2838.5,0.001]
[1763952514392,0.1888,2838.9,2838.5,0.001]
[1763952514896,1.09579264,2839.1,2838.5,0.001]
[1763952515103,0.78963926,2839.0,2838.5,0.001]
[1763952515458,0.51996938,2839.6,2838.9,0.1203]
[1763952515459,0.1888,2839.4,2838.9,0.1203]
[1763952516191,0.04402493,2839.3,2838.9,0.1203]
[1763952516369,0.1888,2839.4,2838.9,0.1203]
[1763952516370,0.04402648,2839.2,2838.9,0.1203]
[1763952516978,0.1888,2839.4,2838.9,0.1203]
[1763952517293,0.8958,2839.7,2838.9,0.1203]
[1763952517691,0.486,2839.6,2838.9,0.1203]
[1763952518083,0.486,2839.6,2838.5,0.001]
[1763952519403,0.486,2839.6,2838.7,0.1]
[1763952520310,0.486,2839.6,2838.5,0.001]
[1763952520491,0.04402183,2839.5,2838.5,0.001]
[1763952520884,0.486,2839.4,2838.5,0.001]
[1763952523117,0.04402493,2839.3,2838.5,0.001]
[1763952523613,0.486,2839.2,2838.5,0.001]
[1763952525016,0.4852,2838.6,2838.5,0.001]
[1763952525387,0.9804,2838.6,2838.5,0.001]
[1763952526717,0.4852,2838.6,2838.5,0.001]
[1763952527514,0.9804,2838.6,2838.5,0.001]
[1763952530836,0.4952,2839.0,2838.5,0.001]
[1763952530990,0.226,2839.1,2838.5,0.001]
[1763952532035,6.8152,2839.6,2839.0,0.1203]
[1763952532193,6.32,2839.6,2839.1,0.2203]
[1763952532595,0.226,2839.8,2839.5,0.1203]
[1763952532795,0.226,2839.8,2839.7,0.1203]
[1763952533100,0.226,2839.8,2839.3,0.1]
[1763952533516,0.226,2839.8,2839.7,0.1203]
[1763952533827,0.1895,2840.1,2838.9,3.52243955]
[1763952534028,0.1895,2840.1,2839.3,0.1]
[1763952534729,0.4952,2840.0,2838.8,0.1]
[1763952535026,0.4952,2840.0,2838.9,0.1]
[1763952535228,0.1895,2839.9,2838.9,0.1]
[1763952535733,0.1895,2839.9,2838.9,0.1203]
[1763952535938,0.1895,2839.9,2839.0,0.1]
[1763952536095,0.1895,2840.1,2839.3,0.1]
[1763952537034,0.55544307,2840.2,2839.3,0.1203]
[1763952537235,0.55544307,2840.2,2839.6,0.1]
[1763952537415,0.226,2840.2,2839.6,0.1]
[1763952538230,0.4952,2840.1,2839.1,0.1]
[1763952538434,0.4952,2840.1,2839.4,0.1]
[1763952539531,0.4952,2840.1,2839.1,0.1]
[1763952539963,0.4952,2840.1,2838.8,0.226]
[1763952540161,0.226,2840.2,2839.3,0.1]
[1763952540467,0.226,2840.2,2839.6,0.1]
[1763952540777,0.4852,2839.2,2838.5,0.001]
[1763952540944,0.4852,2839.0,2838.5,0.001]
[1763952541137,0.1895,2839.2,2838.6,0.1]
[1763952541571,0.53922803,2839.1,2838.6,0.1]
[1763952541779,0.53922803,2839.1,2838.5,0.001]
[1763952541780,0.4952,2839.1,2838.5,0.001]
[1763952542578,0.4852,2838.6,2838.5,0.001]
[1763952543040,0.9804,2838.6,2838.5,0.001]
[1763952544579,1.30967995,2838.6,2838.5,0.001]
[1763952546566,2.21667259,2838.6,2838.5,0.001]
[1763952546771,2.81321441,2838.6,2838.5,0.001]
[1763952547086,6.85604717,2838.6,2838.5,0.001]
[1763952547269,9.23578117,2838.6,2838.5,0.001]
[1763952547444,11.16842517,2838.6,2838.5,0.001]
[1763952548077,2.42619115,2838.6,2838.5,0.001]
[1763952548448,3.33318379,2838.6,2838.5,0.001]
[1763952548640,2.42619115,2838.6,2838.5,0.001]
[1763952548873,3.33318379,2838.6,2838.5,0.001]
[1763952549193,2.42619115,2838.6,2838.5,0.001]
[1763952549399,1.90622177,2838.6,2838.5,0.001]
[1763952549570,1.30967995,2838.6,2838.5,0.001]
[1763952550296,2.73664197,2838.6,2838.5,0.001]
[1763952550496,13.26045735,2838.6,2838.5,0.001]
[1763952550699,11.60246135,2838.6,2838.5,0.001]
[1763952551362,14.80884235,2838.6,2838.5,0.001]
[1763952551568,16.10760133,2838.6,2838.5,0.001]
[1763952551900,15.50260133,2838.6,2838.5,0.001]
[1763952552268,13.45691033,2838.6,2838.5,0.001]
[1763952552467,14.47649033,2838.6,2838.5,0.001]
[1763952553393,8.11526433,2838.6,2838.5,0.001]
[1763952553705,17.26267933,2838.6,2838.5,0.001]
[1763952554082,17.4039719,2838.6,2838.5,0.001]
[1763952554294,16.7134899,2838.6,2838.5,0.001]
[1763952554494,17.6900629,2838.6,2838.5,0.001]
[1763952554805,14.6730849,2838.6,2838.5,0.001]
[1763952555305,13.7404649,2838.6,2838.5,0.001]
[1763952555714,10.5388759,2838.6,2838.5,0.001]
[1763952555902,8.2565569,2838.6,2838.5,0.001]
[1763952556209,4.73369352,2838.6,2838.5,0.001]
[1763952556505,1.67697252,2838.6,2838.5,0.001]
[1763952556873,1.34769257,2838.6,2838.5,0.001]
[1763952557500,0.36729257,2838.6,2838.5,0.001]
[1763952557718,1.32899257,2838.6,2838.5,0.001]
[1763952557920,0.226,2838.6,2838.5,0.001]
[1763952558578,1.619639,2838.6,2838.5,0.001]
[1763952558903,1.619639,2838.6,2836.6,0.1223]
[1763952558904,13.939034,2838.2,2836.6,0.1223]
[1763952559078,21.261688,2837.6,2836.2,0.1223]
[1763952559278,21.261688,2837.6,2834.5,0.18418229]
[1763952559279,0.90699264,2837.1,2834.6,0.2446]
[1763952559591,1.51662114,2837.5,2835.6,0.1]
[1763952559592,2.18954305,2837.0,2835.6,0.1]
[1763952559789,1.14457504,2837.0,2835.6,0.1]
[1763952560161,0.1829,2836.9,2835.7,0.1223]
[1763952560277,0.6826,2836.9,2835.7,0.1223]
[1763952560478,1.58959264,2836.9,2835.7,0.1223]
[1763952560809,1.23161813,2836.8,2835.4,0.1223]
[1763952561308,0.4997,2836.7,2835.4,0.1223]
[1763952561513,0.226,2836.6,2835.4,0.1223]
[1763952562029,0.7257,2836.6,2835.4,0.1223]
[1763952562175,0.73191813,2836.8,2834.6,0.1223]
[1763952562176,1.40669264,2836.5,2834.6,0.1223]
[1763952562381,0.226,2836.4,2834.8,0.1]
[1763952562576,0.7257,2836.4,2834.9,0.1223]
[1763952562973,0.226,2836.3,2834.9,0.2223]
[1763952563410,0.7257,2836.3,2835.0,0.1223]
[1763952563777,0.4997,2836.2,2834.8,0.1223]
[1763952563978,0.90699264,2836.1,2834.8,0.1223]
[1763952564181,0.49325539,2836.0,2834.8,0.1223]
[1763952564812,0.226,2835.9,2834.8,3.64985537]
[1763952565015,0.226,2835.9,2835.3,0.1]
[1763952565313,0.226,2835.9,2835.8,0.1223]
[1763952565511,1.06030858,2836.5,2835.8,0.1223]
[1763952565712,0.27006994,2836.4,2835.8,0.1223]
[1763952565914,0.226,2836.4,2835.8,0.1223]
[1763952566211,0.226,2836.4,2835.2,0.1223]
[1763952566212,0.7257,2836.4,2835.2,0.1223]
[1763952566510,0.7257,2836.4,2835.2,0.2223]
[1763952566712,0.7257,2836.4,2835.2,0.1223]
[1763952566713,0.226,2836.4,2835.2,0.1223]
[1763952566913,0.226,2836.4,2835.3,0.2223]
[1763952567113,0.226,2836.4,2835.4,0.1223]
[1763952567621,0.226,2836.4,2835.9,0.1]
[1763952568047,0.226,2836.4,2835.9,0.2223]
[1763952568337,0.226,2836.4,2835.6,0.2223]
[1763952568537,0.7257,2836.4,2835.4,0.1]
[1763952568736,0.7257,2836.4,2835.3,0.1223]
[1763952568737,0.4997,2836.8,2835.5,0.1]
[1763952569036,0.7257,2836.7,2835.5,0.2223]
[1763952569407,0.4997,2836.6,2835.5,0.2223]
[1763952570260,0.1829,2836.9,2835.6,0.1223]
[1763952570409,0.1829,2836.9,2835.7,0.1]
[1763952570608,0.226,2836.8,2835.7,0.1]
[1763952570854,1.39362868,2837.2,2835.6,0.1233]
[1763952570855,0.4997,2837.4,2835.8,0.1223]
[1763952571018,5.23024596,2837.3,2836.0,0.1]
[1763952571217,9.742839,2837.1,2835.6,0.001]
[1763952571526,1.33794349,2837.0,2835.6,0.001]
[1763952571880,0.96690837,2837.0,2835.9,0.1]
[1763952572143,0.226,2837.5,2836.9,0.2223]
[1763952572460,0.002,2838.2,2837.2,0.2223]
[1763952572610,0.002,2838.2,2836.9,3.52492493]
[1763952572611,0.226,2838.1,2837.6,0.1]
[1763952572959,0.002,2838.2,2837.6,0.1]
[1763952573154,0.002,2838.2,2837.6,0.1223]
[1763952573308,0.002,2838.2,2837.1,0.1223]
[1763952573510,0.5017,2838.2,2837.1,0.1]
[1763952573756,0.5017,2838.2,2837.2,0.1223]
[1763952573910,0.5017,2838.2,2837.1,0.1]
[1763952574617,0.5017,2838.2,2837.2,0.1223]
[1763952574817,0.5017,2838.2,2836.7,0.1223]
[1763952574818,0.002,2838.2,2838.1,0.1223]
[1763952575147,0.002,2838.5,2838.1,0.1223]
[1763952575443,0.002,2838.5,2838.4,0.2203]
[1763952575828,0.002,2838.5,2838.4,0.3406]
[1763952576645,0.002,2838.5,2838.4,0.1203]
[1763952576818,0.002,2838.5,2838.4,0.2406]
[1763952577248,0.002,2838.5,2838.0,0.1203]
[1763952577447,0.002,2838.5,2837.9,0.1]
[1763952577607,0.002,2838.5,2837.4,0.1203]
[1763952577814,0.002,2838.5,2837.6,0.1]
[1763952578106,0.002,2838.5,2837.8,0.1]
[1763952578307,0.4783,2838.4,2837.2,0.1]
[1763952578845,0.4783,2838.4,2837.3,0.1]
[1763952579045,0.4783,2838.4,2837.2,0.1203]
[1763952579647,0.4783,2838.4,2837.4,0.1]
[1763952580532,0.002,2838.5,2838.3,0.1203]
[1763952580730,0.002,2838.5,2838.4,0.2203]
[1763952581244,0.002,2838.5,2838.4,0.3406]
[1763952581845,0.002,2838.5,2838.4,0.2203]
[1763952582144,0.002,2838.5,2837.9,0.1203]
[1763952582342,0.002,2838.5,2838.0,0.1]
[1763952583767,0.002,2838.5,2837.6,0.1]
[1763952584144,0.002,2838.5,2837.8,0.1]
[1763952584325,0.002,2838.5,2837.7,0.1203]
[1763952584326,0.002,2838.5,2838.1,0.1]
[1763952585026,0.002,2838.5,2837.8,0.1]
[1763952585534,0.002,2838.5,2837.8,0.47443852]
[1763952585857,0.4567,2838.4,2836.7,0.62303268]
[1763952586163,0.4567,2838.4,2837.2,0.1]
[1763952586358,0.04404044,2838.3,2837.2,0.1]